Cogmind - Beta 14 @@@ ROGUE MODE // 2024.10.08 @ 08:56:26 Player: Junsan Result: Destroyed by H-66 Slayer via exploding Fusion Modulator Performance ------------- Evolutions (4) 2000 Regions Visited (5) 1000 Robots Destroyed (43) 215 Value Destroyed (1671) 1671 Prototype IDs (4) 80 Alien Tech Used (0) 0 Bonus (0) 0 TOTAL SCORE: 4966 Bonus ------- None Cogmind --------- Core Integrity 0/850 Matter 73/300 Energy 100/100 System Corruption 0% Temperature Cool (12) Movement Core (150) Ox2 Location -6/Factory Parts ------- > --- POWER (1) -------- (None) > --- PROPULSION (4) --- (None) > --- UTILITY (7) ------ Trap Scanner Improved Weapon Shielding > --- WEAPON (3) ------- Improved Datajack Remote Datajack > --- INVENTORY (5) ---- Light Deuterium Engine Gravmag Array Peak State ------------ > --- POWER ------------ Nuclear Core > --- PROPULSION ------- Light Treads Light Treads Light Treads Advanced Treads > --- UTILITY ---------- Large Storage Unit Machine Analyzer Improved Sensor Array Seismic Detector Recoil Stabilizer Shock Absorption System System Shield > --- WEAPON ----------- Minigun Gauss Rifle Gauss Rifle > --- INVENTORY -------- Light Deuterium Engine Cooling System Trap Scanner Machine Analyzer Melee Analysis Suite Particle Charger Improved Weapon Shielding Advanced Beam Rifle Improved Spread Laser Grenade Launcher Improved Datajack Remote Datajack Mining Laser [Rating: 41] Favorites ----------- Power Improved Ion Engine Engine Improved Ion Engine Power Core Nuclear Core Propulsion Aluminum Leg Treads Light Treads Leg Aluminum Leg Utility Light Armor Plating Device Seismic Detector Storage Large Storage Unit Processor Machine Analyzer Hackware System Shield Protection Light Armor Plating Weapon EM Shotgun Energy Gun EM Shotgun Ballistic Gun Light Assault Rifle Launcher Grenade Launcher Special Weapon Mining Laser Special Melee Weapon Improved Datajack Build | -11 -10 -9 -8 -7 -6 ------- Run | Yrd Mat Mat Mat Fac Fac Slots Evolved 8 | . . 2 2 2 2 Power . | . . . . . . Propulsion 2 | . . 1 1 . . Utility 5 | . . 1 1 1 2 Weapon 1 | . . . . 1 . Parts Attached 81 | 5 10 30 19 6 11 Power 14 | 1 3 6 3 . 1 Engine 13 | 1 3 6 2 . 1 Core 1 | . . . 1 . . Reactor . | . . . . . . Propulsion 21 | 2 . 10 7 2 . Treads 8 | . . . 6 2 . Leg 13 | 2 . 10 1 . . Wheel . | . . . . . . Hover . | . . . . . . Flight . | . . . . . . Utility 26 | . 7 8 6 1 4 Device 10 | . 1 2 3 1 3 Storage 8 | . 5 2 1 . . Processor 2 | . 1 . 1 . . Hackware 1 | . . . 1 . . Protection 5 | . . 4 . . 1 Artifact . | . . . . . . Weapon 20 | 2 . 6 3 3 6 Energy Gun 6 | . . 3 1 . 2 Energy Cannon . | . . . . . . Ballistic Gun 9 | 2 . 1 2 3 1 Ballistic Cannon . | . . . . . . Launcher 2 | . . 1 . . 1 Special Weapon 2 | . . 1 . . 1 Impact Weapon . | . . . . . . Slashing Weapon . | . . . . . . Piercing Weapon . | . . . . . . Special Melee Weapon 1 | . . . . . 1 Unidentified Prototypes 2 | . . . . . 2 Parts Lost 33 | . . 10 5 . 18 Power 4 | . . 2 . . 2 Propulsion 8 | . . 2 2 . 4 Utility 12 | . . 4 2 . 6 Weapon 9 | . . 2 1 . 6 Highest Loss Streak 18 | . . 2 5 . 18 To Critical Strikes . | . . . . . . Average Slot Usage (%) 93 | . 86 97 93 99 62 Engine 7 | . 14 10 6 . . Core 2 | . . . 2 7 2 Treads 10 | . . . 17 29 12 Leg 20 | . 28 32 13 . . Device 9 | . 3 4 16 14 17 Storage 10 | . 9 14 9 7 4 Processor 3 | . 1 . 8 7 3 Hackware 1 | . . . 1 7 3 Protection 5 | . . 12 . . 1 Energy Gun 8 | . . 12 12 . 1 Ballistic Gun 12 | . 28 8 5 23 10 Peak Build Rating 41 | 5 8 15 25 35 41 Average Rating 18 | 3 6 13 21 33 26 On Entrance 14 | . 5 8 15 25 35 Naked Turns 10 | . . . . . 10 Heaviest Build 44 | 5 30 35 36 40 44 Greatest Support 82 | 20 20 36 82 82 82 Greatest Overweight (x) 8 | . 1 1 2 . 8 Average Overweight (x) . | . . . . . . Largest Inventory Capacity 15 | 5 15 15 15 15 15 Average Capacity 11 | 5 7 11 12 15 12 Most Carried 15 | 5 11 12 15 15 14 Average Carried 10 | 3 6 10 12 14 8 Final Capacity 15 | 5 10 10 15 15 5 Final Carried 15 | 5 10 10 15 15 3 Class Distribution -------------------- 42% | Scavenger-Mutant 38% | Mutant 14% | Skirmisher 4% | Scavenger-Skirmisher Dominant Class ---------------- Mutant | -10/Materials Scavenger-Mutant | -9/Materials Scavenger-Mutant | -8/Materials Skirmisher | -7/Factory Mutant | -6/Factory Resources | -11 -10 -9 -8 -7 -6 ----------- Run | Yrd Mat Mat Mat Fac Fac Matter Collected 1167 | 258 96 460 278 65 10 Remotely . | . . . . . . Salvage Created 1753 | 37 96 659 643 65 253 Parts 97 | 2 7 37 32 6 13 Haulers Intercepted . | . . . . . . Recyclers Shooed . | . . . . . . Parts Field Recycled . | . . . . . . Retrieved Matter . | . . . . . . Parts Self-Destructed . | . . . . . . Prevented . | . . . . . . Kills | -11 -10 -9 -8 -7 -6 ------- Run | Yrd Mat Mat Mat Fac Fac Combat Hostiles Destroyed 38 | 1 2 16 12 1 6 Guns 31 | 1 2 14 11 1 2 Cannons 1 | . . 1 . . . AOE 6 | . . 1 1 . 4 Classes Destroyed 8 | 1 1 3 . . 3 Worker 1 | . . . . . 1 Watcher 4 | . 1 3 . . . Swarmer 3 | . . 3 . . . Grunt 22 | 1 2 9 7 . 3 Duelist 2 | . . 1 1 . . Sentry 8 | . . 3 4 1 . Hunter 2 | . . . . . 2 Heavy 1 | . . . . . 1 Best Kill Streak 6 | 1 2 4 3 1 6 Combat Bots Only 5 | 1 1 4 3 1 5 Max Kills in Single Turn 3 | 1 1 3 1 1 3 Gunslinging . | . . . . . . Exploded 3 | . . 1 1 . 3 Melee . | . . . . . . Uniques/NPCs Destroyed . | . . . . . . Combat | -11 -10 -9 -8 -7 -6 -------- Run | Yrd Mat Mat Mat Fac Fac Hostile Shots Fired 456 | 3 12 133 44 45 219 Missed 133 | 1 2 31 6 19 74 Damage Taken 4975 | 22 109 1480 732 200 2432 Core 1284 | 12 22 203 129 15 903 Absorbed by Shields 32 | . . 32 . . . Redirected to Shielding 11 | . . . . . 11 Regen/Repaired (Parts) 144 | . 19 . 125 . . Core Remaining (%) 80 | 95 86 49 76 97 . Volleys Fired 183 | 4 26 89 40 4 20 Largest 3 | 2 2 2 2 3 3 Hottest 136 | 40 40 120 90 81 136 Shots Fired 358 | 8 52 167 74 12 45 Gun 346 | 8 52 160 74 12 40 Cannon . | . . . . . . Launcher 7 | . . 2 . . 5 Special 5 | . . 5 . . . Kinetic 255 | 8 52 124 28 12 31 Thermal 14 | . . 5 . . 9 Explosive 7 | . . 2 . . 5 Electromagnetic 82 | . . 36 46 . . Robot Hit Streak 18 | 1 7 14 18 5 8 Robot Miss Streak 6 | 2 5 6 5 1 3 Penetration Max 1 | . . . . . 1 Secondary Targets . | . . . . . . Shots Hit Robots 232 | 3 24 109 58 9 29 Core Hits 109 | 2 6 40 35 4 22 Critical Kills . | . . . . . . Critical Parts Destroyed . | . . . . . . Critical Strikes . | . . . . . . Melee Attacks . | . . . . . . Impact . | . . . . . . Slashing . | . . . . . . Piercing . | . . . . . . Sneak Attacks . | . . . . . . Combat Hostiles . | . . . . . . Follow-up Attacks . | . . . . . . Damage Inflicted 3407 | 21 169 1119 949 119 1030 Guns 2456 | 21 169 819 777 119 551 Cannons . | . . . . . . Explosions 927 | . . 276 172 . 479 Melee . | . . . . . . Ramming . | . . . . . . Kinetic 1532 | 21 169 505 307 119 411 Thermal 541 | . . 229 172 . 140 Explosive 550 | . . 71 . . 479 Electromagnetic 784 | . . 314 470 . . Impact . | . . . . . . Slashing . | . . . . . . Piercing . | . . . . . . Highest Corruption . | . . . . . . Average Corruption . | . . . . . . Corruption Purged . | . . . . . . Corruption Blocked . | . . . . . . Overload Shots . | . . . . . . Overflow Damage . | . . . . . . Projectiles . | . . . . . . Explosions . | . . . . . . Melee . | . . . . . . Knockbacks . | . . . . . . Impact . | . . . . . . Kinetic . | . . . . . . Secondary . | . . . . . . Self-Inflicted Damage 215 | . . 115 100 . . Shots 5 | . . 3 2 . . Rammed . | . . . . . . Targets Rammed . | . . . . . . Kicked . | . . . . . . Crushed . | . . . . . . Highest Temperature 196 | 6 12 196 183 48 112 Average Temperature 59 | 6 8 57 100 31 40 Received Heat Transfer 1347 | 12 60 471 297 66 441 Siege Activations . | . . . . . . Robots Corrupted . | . . . . . . Combat Hostiles . | . . . . . . Parts Fried 2 | . . 1 1 . . Impact Corruptions . | . . . . . . Robots Melted . | . . . . . . Combat Hostiles . | . . . . . . Parts Melted 1 | . . 1 . . . Heat Transferred 742 | . . 300 200 . 242 Parts Sabotaged . | . . . . . . Parts Stolen . | . . . . . . Parts Stripped . | . . . . . . Power Chain Reactions 6 | . . 4 2 . . Alert | -11 -10 -9 -8 -7 -6 ------- Run | Yrd Mat Mat Mat Fac Fac Peak Influence 330 | 20 118 330 276 129 123 Initial 125 | . 13 49 42 125 14 Average 116 | 6 76 143 134 95 50 Maximum Alert Level 1 | . . 1 1 . . Low Security (%) 85 | 100 100 79 73 100 100 Level 1 14 | . . 20 26 . . Level 2 . | . . . . . . Level 3 . | . . . . . . Level 4 . | . . . . . . Level 5 . | . . . . . . High Security . | . . . . . . Max Security . | . . . . . . Squads Dispatched 12 | . 1 3 3 1 4 Investigation 4 | . . 2 1 . 1 Extermination 1 | . . . . 1 . Reinforcement 7 | . 1 1 2 . 3 Assault . | . . . . . . Garrison . | . . . . . . Intercept . | . . . . . . Searches Triggered . | . . . . . . Construction Impeded 1 | . . . . . 1 Haulers Reinforced . | . . . . . . Active Scanning Responses . | . . . . . . Cargo Convoy Interrupts . | . . . . . . Stealth | -11 -10 -9 -8 -7 -6 --------- Run | Yrd Mat Mat Mat Fac Fac Distress Signals 3 | . 1 . 2 . . Communications Jammed . | . . . . . . Distress Signals . | . . . . . . Times Spotted 74 | 1 8 26 21 2 16 Peak Tracking Total 9 | 1 4 5 4 2 9 Tactical Retreats 6 | . . 2 3 . 1 Traps | -11 -10 -9 -8 -7 -6 ------- Run | Yrd Mat Mat Mat Fac Fac Traps Triggered . | . . . . . . Indirectly . | . . . . . . Trap Hack Attempts . | . . . . . . Triggered . | . . . . . . Disarmed . | . . . . . . Reprogrammed . | . . . . . . Reused . | . . . . . . Traps Extracted . | . . . . . . Installed . | . . . . . . Triggered . | . . . . . . Machines | -11 -10 -9 -8 -7 -6 ---------- Run | Yrd Mat Mat Mat Fac Fac Machines Disabled 2 | . . . 1 . 1 Max in Single Turn 1 | . . . 1 . 1 Machines Repaired . | . . . . . . Machines Dismantled . | . . . . . . Machines Sabotaged . | . . . . . . Overloaded Fab Kills . | . . . . . . Hacking | -11 -10 -9 -8 -7 -6 --------- Run | Yrd Mat Mat Mat Fac Fac Machines Accessed 17 | . 2 6 4 4 1 Terminals 13 | . 1 5 3 4 . Fabricators 1 | . . . . . 1 Repair Stations 2 | . 1 . 1 . . Recycling Units . | . . . . . . Scanalyzers 1 | . . 1 . . . Garrison Access . | . . . . . . Total Hacks 68 | . 14 23 14 15 2 Successful 42 | . 8 15 9 8 2 Failed 25 | . 6 8 5 6 . Catastrophic 6 | . . 1 2 3 . Database Lockouts 1 | . . . . 1 . Manual . | . . . . . . Terminals 44 | . 5 16 8 15 . Fabricators 2 | . . . . . 2 Repair Stations 15 | . 9 . 6 . . Recycling Units . | . . . . . . Scanalyzers 7 | . . 7 . . . Garrison Access . | . . . . . . Terminal Hacks 22 | . 2 8 4 8 . Record 14 | . 2 2 3 7 . Prototype ID Bank 1 | . . 1 . . . Alert Level 3 | . . 2 1 . . Locate Traps 3 | . . 2 . 1 . Dispatch Records 1 | . . 1 . . . Fabricator Hacks 2 | . . . . . 2 Load Schematic 1 | . . . . . 1 Build 1 | . . . . . 1 Repair Station Hacks 11 | . 6 . 5 . . Scan Component 7 | . 4 . 3 . . Repair 4 | . 2 . 2 . . Recycling Unit Hacks . | . . . . . . Scanalyzer 7 | . . 7 . . . Insert Component 4 | . . 4 . . . Analyze 3 | . . 3 . . . Garrison Access Hacks . | . . . . . . Unauthorized Hacks . | . . . . . . Terminals . | . . . . . . Fabricators . | . . . . . . Repair Stations . | . . . . . . Recycling Units . | . . . . . . Scanalyzers . | . . . . . . Garrison Access . | . . . . . . Data Cores Recovered . | . . . . . . Used . | . . . . . . Hacking Detections 16 | . 2 6 3 4 1 Full Trace Events 5 | . 1 2 1 . 1 Feedback Events . | . . . . . . Feedback Blocked . | . . . . . . Robot Schematics Acquired . | . . . . . . Robots Built . | . . . . . . Authchips . | . . . . . . Time . | . . . . . . Total Robot Build Rating . | . . . . . . Part Schematics Acquired 3 | . . 3 . . . Parts Built 1 | . . . . . 1 Authchips . | . . . . . . Time 25 | . . . . . 25 Total Part Build Rating 1 | . . . . . 1 Parts Repaired 4 | . 2 . 2 . . Time 131 | . 52 . 79 . . Parts Recycled . | . . . . . . Recycled Matter . | . . . . . . Retrieved Matter . | . . . . . . Retrieved Components . | . . . . . . Parts Scanalyzed 3 | . . 3 . . . Part Schematics Acquired 3 | . . 3 . . . Parts Damaged . | . . . . . . Bothacking | -11 -10 -9 -8 -7 -6 ------------ Run | Yrd Mat Mat Mat Fac Fac Used RIF Installer . | . . . . . . Robots Hacked . | . . . . . . Non-combat . | . . . . . . Combat . | . . . . . . Robot Hacks Applied . | . . . . . . Relay Couplers Released . | . . . . . . Fabnet Peak Effective % . | . . . . . . Robots Rewired . | . . . . . . Allies Hacked . | . . . . . . Hacks Repelled . | . . . . . . Allies | -11 -10 -9 -8 -7 -6 -------- Run | Yrd Mat Mat Mat Fac Fac Total Allies . | . . . . . . Largest Group . | . . . . . . Highest-Rated Group . | . . . . . . Highest-Rated Ally . | . . . . . . Total Orders . | . . . . . . Ally Attacks . | . . . . . . Total Damage . | . . . . . . Kills . | . . . . . . Allies Corrupted . | . . . . . . Allies Melted . | . . . . . . Intel | -11 -10 -9 -8 -7 -6 ------- Run | Yrd Mat Mat Mat Fac Fac Robot Analysis Total . | . . . . . . Derelict Logs Recovered . | . . . . . . Drone Launches . | . . . . . . Drone Recoveries . | . . . . . . Exploration | -11 -10 -9 -8 -7 -6 ------------- Run | Yrd Mat Mat Mat Fac Fac Turns Passed 3485 | 125 376 1420 787 586 191 Spaces Moved 1633 | 85 186 663 278 339 82 Core 63 | 18 . . . . 45 Treads 576 | . . . 200 339 37 Legs 994 | 67 186 663 78 . . Wheels . | . . . . . . Hover . | . . . . . . Flight . | . . . . . . Fastest Speed 50 | 50 120 120 152 152 50 Average Speed 147 | 105 123 149 164 155 134 Slowest Speed 450 | 120 190 190 260 156 450 Overloaded Moves . | . . . . . . Propulsion Burnouts . | . . . . . . Robots Hopped . | . . . . . . Cave-ins Triggered . | . . . . . . Exploration Rate (%) 18 | 10 27 36 24 8 5 Regions Visited 5 Branch Regions . Pre-discovered Areas . | . . . . . . Known Exits Taken . | . . . . . . Unknown Exits Taken 5 | 1 1 1 1 1 . Scrap Searched . | . . . . . . Spaces Dug . | . . . . . . Terrain Destroyed 54 | . . 23 12 . 19 Melee . | . . . . . . Projectile 1 | . . 1 . . . AOE 53 | . . 22 12 . 19 Terrain Rammed . | . . . . . . Walls Destroyed . | . . . . . . Machines Disabled . | . . . . . . Actions | -11 -10 -9 -8 -7 -6 --------- Run | Yrd Mat Mat Mat Fac Fac Total 2396 | 114 292 935 539 391 125 Wait 370 | 11 45 119 166 25 4 Move 1628 | 84 185 662 277 338 82 Hop . | . . . . . . Pick Up 84 | 10 17 24 23 8 2 Fast Attach 10 | . 2 . 4 4 . Attach 40 | 5 2 13 8 2 10 Detach . | . . . . . . Swap 31 | . 6 17 7 . 1 Drop 50 | . 9 11 14 10 6 Fire 183 | 4 26 89 40 4 20 Melee . | . . . . . . Ram . | . . . . . . Kick . | . . . . . . Crush . | . . . . . . Escape Stasis . | . . . . . . Rewire . | . . . . . . Trap . | . . . . . . Miscellaneous . | . . . . . . Route ------- -11/Scrapyard -10/Materials -9/Materials -8/Materials -7/Factory -6/Factory History --------- Turn | Location | Event 2 | -11/Scrapyard | Met Revision 17 70 | -11/Scrapyard | Discovered new exit (range 8) 126 | -11/Scrapyard | Entered Materials 172 | -10/Materials | Repaired Ion Engine 198 | -10/Materials | Repaired Aluminum Leg 309 | -10/Materials | Build established: Mutant 361 | -10/Materials | Discovered new exit (range 15) 502 | -10/Materials | Entered another Materials area 502 | -9/Materials | Evolved 2 slots: Propulsion x1, Utility x1 1115 | -9/Materials | Core integrity fell below 50% 1282 | -9/Materials | Build established: Scavenger-Mutant 1618 | -9/Materials | Discovered new exit (range 14) 1922 | -9/Materials | Entered another Materials area 1922 | -8/Materials | Evolved 2 slots: Propulsion x1, Utility x1 1995 | -8/Materials | Lost 5 parts (2n2u1w) 2654 | -8/Materials | Repaired Broken Adv. Treads 2682 | -8/Materials | Repaired Lgt. Treads 2698 | -8/Materials | Discovered new exit (range 5) 2709 | -8/Materials | Entered Factory 2709 | -7/Factory | Evolved 2 slots: Utility x1, Weapon x1 2914 | -7/Factory | Central database locked down 3164 | -7/Factory | Build established: Skirmisher 3284 | -7/Factory | Discovered new exit (range 5) 3295 | -7/Factory | Entered another Factory area 3295 | -6/Factory | Evolved 2 slots: Utility x2 3342 | -6/Factory | Fabricated Lrg. Storage Unit? 3427 | -6/Factory | Core integrity fell below 50% 3434 | -6/Factory | Core integrity fell below 20% 3460 | -6/Factory | Lost 18 parts (2p4n6u6w) 3486 | -6/Factory | Destroyed by H-66 Slayer via exploding Fusion Modulator Last Messages --------------- do not fire together with ranged weapons in the same volley. K-01 Serf collects debris. Slug penetrates Wall. Acquired Lgt. Deuterium Engine. Penetrated by Slug. K-01 Serf collects debris. Penetrated by Slug. Acquired Gravmag Array. Fusion Modulator explodes. U-05 Engineer destroyed. Recycling Unit disabled. Structural Scanner tumbles out of recycling unit. Prototype Processor tumbles out of recycling unit. Fusion Modulator explodes. Terrain Scanner tumbles out of recycling unit. Fusion Modulator explodes. [Achievement: First Step to Greatness] Map ----- +----------------------------------------------------+ | ?????????????????????????????????????????????????? | | ?????????????????????????????????????????????????? | | ?????????????????????????????????????????????????? | | ?????????????????????????????????????????????????? | | ?????????????????????????????????????????????????? | | ?????????????????????????????????????????????????? | | ??????????????? ??????????????????????????????? | | ??????????????? ??????????????????????????????? | | ??????? ??? ??????????????????????????????? | | ?????# ??????????????????????????????? | | ?????# #??????????????????????????????? | | ?????# #??????????????????????????????? | | ?????# ? #??????????????????????????????? | | ?????# #??????????????????????????????? | | ?????# "" "" ##############?????????????????? | | ?????# "" "" # #?????????????????? | | ?????# """ """ ; #?????????????????? | | ?????# """ """ ; #?????????????????? | | ?????# """ """ ; #?????????????????? | | ?????# ; #?????????????????? | | ?????# ; ! #?????????????????? | | ?????# #?????????????????? | | ?????# h ; ! #####?????????????? | | ?????+ h gh ; k ??????????????? | | ?????### #### ; ! #?????????????????? | | ???????# #??# # @ #?????????????????? | | ???????# #??# # #?????????????????? | | ???????# #??# ###########+##?????????????????? | | ########+##?# #??????????????????????????????? | | #?# #??????????????????????????????? | | """"""""" #?# #??????????????????????????????? | | #?# #??????????????????????????????? | | """"""""" #?# #??????????????????????????????? | | #?# ??????????????????????????????? | | """"""""" #?# ?????????????????????????????? | | #?# ?????????????????????????????? | | """"""""" #?# ?????????????????????????????? | | #?? ???????????????????????????????? | | """"""""" #?? ?????????????????????????????????? | | #??????????????????????????????????????? | | #??????????????????????????????????????? | | ###########??????????????????????????????????????? | | ?????????????????????????????????????????????????? | | ?????????????????????????????????????????????????? | | ?????????????????????????????????????????????????? | | ?????????????????????????????????????????????????? | | ?????????????????????????????????????????????????? | | ?????????????????????"""?????????????????????????? | | ????????????????????""F""????????????????????????? | | ????????????????????""?""????????????????????????? | +----------------------------------------------------+ Best States ------------- Heat Dissipation 53 Energy Generation 14 Energy Capacity 265 Matter Stores 337 Matter Capacity 450 Sight Range 16 Robot Scan Range 15 Terrain Scan Density 10 Armor Coverage 300 Resistance: EX 25 Weapon Shielding 66 Evasion (%) 55 Recoil Reduction 8 Defensive Hacking 10 Item Schematics ----------------- Grenade Launcher | -9/Materials | Scanalyzed Lrg. Storage Unit | -9/Materials | Scanalyzed Heat Sink | -9/Materials | Scanalyzed Robot Schematics ------------------ None Fabricated ------------ Lrg. Storage Unit | x1 | -6/Factory Alien Tech Used ----------------- None Achievements -------------- Crack Shot First Step to Greatness Just What I Needed Librarian Made in Tau Ceti IV Novice Programmer One Hack Too Far Part-time Mechanic Please Form A Line Risk Taker Storm Trooper Uninvited Guest Challenges ------------ None Game ------ Seed SubdwellerBiocellLog Manual? 0 Play Time 02:40:00 Cumulative 2.6 hours Start 2024.10.08 @ 04:53:08 End 2024.10.08 @ 08:56:26 Sessions 3 Manual Loads 0 Difficulty Rogue Special Mode None Game No. 1 Rogue 1 Adventurer 0 Explorer 0 Win Type - Total 0 Types 0/0/0/0/0/0/0/0/0 Lore% 1 Gallery% 3 Achievement% 4 Wizard Run 0 Options --------- Layout 1 ASCII 0 Keyboard 0 Movement Mouse Keybinds 0 Fullscreen 1 Font 24/Smallcaps Map View 50x35 Zoom Use 0% Tactical HUD 0 Map Filters NONE Filters NONE Steam 1 RUN: b85c33de-fce3-453e-b122-572c5a231251